[Event "Live Chess"]
[Site "Chess.com"]
[Date "2023.09.16"]
[Round "-"]
[White "ravypintodiniz"]
[Black "P3treis"]
[Result "1-0"]
[WhiteElo "2012"]
[BlackElo "915"]
[TimeControl "900+5"]
[EndTime "6:38:23 PDT"]
[Termination "ravypintodiniz venceu por xeque-mate"]

1. e4 {[%clk 0:15:03.8]} 1... c5 {[%clk 0:15:03.4]} 2. Nf3 {[%clk 0:15:07.5]}
2... d6 {[%clk 0:15:07.2]} 3. d4 {[%clk 0:15:12.1]} 3... cxd4 {[%clk 0:15:11.8]}
4. Nxd4 {[%clk 0:15:16.4]} 4... Nf6 {[%clk 0:15:15.8]} 5. Nc3 {[%clk 0:15:21]}
5... a6 {[%clk 0:15:20]} 6. Bg5 {[%clk 0:15:25.4]} 6... e6 {[%clk 0:15:23.7]} 7.
Qd2 {[%clk 0:15:29.8]} 7... Be7 {[%clk 0:15:25.3]} 8. O-O-O {[%clk 0:15:34.4]}
8... Qc7 {[%clk 0:15:24.3]} 9. f4 {[%clk 0:15:37.3]} 9... Nbd7 {[%clk
0:15:27.7]} 10. Be2 {[%clk 0:15:21.8]} 10... h6 {[%clk 0:14:37.7]} 11. Bh4
{[%clk 0:15:01.9]} 11... b5 {[%clk 0:14:38]} 12. Bf3 {[%clk 0:14:46.2]} 12...
Bb7 {[%clk 0:14:20]} 13. a3 {[%clk 0:14:26.1]} 13... O-O {[%clk 0:13:06.3]} 14.
g4 {[%clk 0:14:12.5]} 14... d5 {[%clk 0:11:52.4]} 15. e5 {[%clk 0:14:04.6]}
15... Ne4 {[%clk 0:11:21.3]} 16. Bxe4 {[%clk 0:12:48]} 16... dxe4 {[%clk
0:11:21.1]} 17. Bxe7 {[%clk 0:12:49.9]} 17... e3 {[%clk 0:11:11.4]} 18. Qxe3
{[%clk 0:12:48.5]} 18... Bxh1 {[%clk 0:11:14.3]} 19. Bxf8 {[%clk 0:12:51.6]}
19... Kxf8 {[%clk 0:11:17.9]} 20. Rxh1 {[%clk 0:12:51.8]} 20... Rb8 {[%clk
0:10:50.7]} 21. f5 {[%clk 0:12:37.5]} 21... Nxe5 {[%clk 0:10:36.6]} 22. fxe6
{[%clk 0:12:32.3]} 22... Nxg4 {[%clk 0:09:35.6]} 23. Qf3 {[%clk 0:11:52.2]}
23... Ne5 {[%clk 0:08:51.6]} 24. Qg3 {[%clk 0:11:38.4]} 24... g6 {[%clk
0:07:43.8]} 25. Rf1 {[%clk 0:11:21.6]} 25... Rb7 {[%clk 0:06:41.8]} 26. exf7
{[%clk 0:11:08.4]} 26... Nxf7 {[%clk 0:05:37.8]} 27. Ne6+ {[%clk 0:11:10.1]}
27... Kg8 {[%clk 0:05:37.8]} 28. Qxg6+ {[%clk 0:11:07.6]} 28... Kh8 {[%clk
0:05:41]} 29. Qg7# {[%clk 0:11:11.6]} 1-0

[Event "Live Chess"]
[Site "Chess.com"]
[Date "2023.09.16"]
[Round "-"]
[White "abaakate"]
[Black "Thiago1451"]
[Result "1-0"]
[WhiteElo "1937"]
[BlackElo "565"]
[TimeControl "900+5"]
[EndTime "6:39:09 PDT"]
[Termination "abaakate venceu por desistência"]

1. d4 {[%clk 0:15:03.8]} 1... d5 {[%clk 0:15:03.6]} 2. c4 {[%clk 0:15:07.7]}
2... dxc4 {[%clk 0:15:04.7]} 3. Nf3 {[%clk 0:15:10.5]} 3... Nc6 {[%clk
0:15:05.9]} 4. g3 {[%clk 0:15:09.8]} 4... Nf6 {[%clk 0:15:09.2]} 5. Bg2 {[%clk
0:15:13.1]} 5... e5 {[%clk 0:15:12.3]} 6. dxe5 {[%clk 0:14:48.6]} 6... Qxd1+
{[%clk 0:15:15.7]} 7. Kxd1 {[%clk 0:14:53.5]} 7... Ng4 {[%clk 0:15:15.1]} 8. Ke1
{[%clk 0:14:44.2]} 8... Ngxe5 {[%clk 0:15:16.4]} 9. Nxe5 {[%clk 0:14:42.7]} 9...
Nxe5 {[%clk 0:15:21.3]} 10. Bf4 {[%clk 0:14:46.2]} 10... Bd6 {[%clk 0:15:23.1]}
11. Nc3 {[%clk 0:14:44.5]} 11... O-O {[%clk 0:15:25.1]} 12. Nb5 {[%clk
0:14:47.7]} 12... Rd8 {[%clk 0:15:23.5]} 13. Nxd6 {[%clk 0:14:25.5]} 13... cxd6
{[%clk 0:15:26.6]} 14. Rd1 {[%clk 0:14:25.4]} 14... Nc6 {[%clk 0:15:16.5]} 15.
Bxc6 {[%clk 0:13:54.8]} 15... bxc6 {[%clk 0:15:16.3]} 16. Bxd6 {[%clk
0:13:52.4]} 16... Re8 {[%clk 0:15:01.5]} 17. Rc1 {[%clk 0:13:39.5]} 17... Bg4
{[%clk 0:14:59.8]} 18. e3 {[%clk 0:13:39.2]} 18... Red8 {[%clk 0:14:58.5]} 19.
Bc5 {[%clk 0:13:17.4]} 19... Rd5 {[%clk 0:14:55.2]} 20. Bd4 {[%clk 0:13:17.7]}
20... Rad8 {[%clk 0:14:55.2]} 21. f3 {[%clk 0:12:05]} 21... Bxf3 {[%clk
0:14:55.8]} 22. Rf1 {[%clk 0:12:08.1]} 22... Bh5 {[%clk 0:14:54.1]} 23. Rxc4
{[%clk 0:12:08.6]} 23... Rb8 {[%clk 0:14:48.5]} 24. Rxc6 {[%clk 0:11:59.8]}
24... h6 {[%clk 0:14:52.2]} 25. Rc7 {[%clk 0:11:22.9]} 25... Rxb2 {[%clk
0:14:51.2]} 26. Bxb2 {[%clk 0:11:17.2]} 26... Ra5 {[%clk 0:14:51.8]} 27. a3
{[%clk 0:11:09]} 27... Rd5 {[%clk 0:14:47.4]} 28. Bd4 {[%clk 0:11:10.3]} 28...
Rxd4 {[%clk 0:14:50.9]} 29. exd4 {[%clk 0:11:13.3]} 1-0

[Event "Live Chess"]
[Site "Chess.com"]
[Date "2023.09.16"]
[Round "-"]
[White "Abofado"]
[Black "Francisco_Ferrari"]
[Result "0-1"]
[WhiteElo "592"]
[BlackElo "2169"]
[TimeControl "900+5"]
[EndTime "6:39:31 PDT"]
[Termination "Francisco_Ferrari venceu por xeque-mate"]

1. e4 {[%clk 0:15:01.6]} 1... e5 {[%clk 0:15:04.3]} 2. Nf3 {[%clk 0:15:04.8]}
2... Nc6 {[%clk 0:15:08.5]} 3. d4 {[%clk 0:15:08.5]} 3... exd4 {[%clk
0:15:12.5]} 4. Nxd4 {[%clk 0:15:11.6]} 4... Nf6 {[%clk 0:15:17.1]} 5. e5 {[%clk
0:15:14.5]} 5... Nxe5 {[%clk 0:15:18.9]} 6. Nf5 {[%clk 0:15:12.8]} 6... d5
{[%clk 0:15:19.1]} 7. f4 {[%clk 0:15:01.1]} 7... Ng6 {[%clk 0:15:18.9]} 8. Nc3
{[%clk 0:14:58]} 8... Bxf5 {[%clk 0:15:22.3]} 9. Bc4 {[%clk 0:14:59.9]} 9...
dxc4 {[%clk 0:15:24.8]} 10. Nb5 {[%clk 0:15:02.3]} 10... Qxd1+ {[%clk
0:15:22.6]} 11. Kxd1 {[%clk 0:15:05.6]} 11... O-O-O+ {[%clk 0:15:27.5]} 12. Ke2
{[%clk 0:15:08.9]} 12... Bg4+ {[%clk 0:15:30.5]} 13. Kf2 {[%clk 0:15:12.1]}
13... Ne4+ {[%clk 0:15:34.5]} 14. Ke3 {[%clk 0:15:15.4]} 14... Bc5+ {[%clk
0:15:34.8]} 15. Kxe4 {[%clk 0:15:19]} 15... f5# {[%clk 0:15:39.1]} 0-1

[Event "Live Chess"]
[Site "Chess.com"]
[Date "2023.09.16"]
[Round "-"]
[White "migu345"]
[Black "fernanndodod"]
[Result "0-1"]
[WhiteElo "1004"]
[BlackElo "1980"]
[TimeControl "900+5"]
[EndTime "6:39:42 PDT"]
[Termination "fernanndodod venceu por desistência"]

1. e4 {[%clk 0:15:03.7]} 1... e5 {[%clk 0:15:03.3]} 2. Nf3 {[%clk 0:15:07.8]}
2... Nc6 {[%clk 0:15:06.7]} 3. Bc4 {[%clk 0:15:12.2]} 3... Bc5 {[%clk
0:15:09.9]} 4. d3 {[%clk 0:15:14.1]} 4... Nf6 {[%clk 0:15:13.2]} 5. Nc3 {[%clk
0:15:18.5]} 5... d6 {[%clk 0:15:16.6]} 6. Na4 {[%clk 0:15:21.4]} 6... Bb6 {[%clk
0:15:20.2]} 7. O-O {[%clk 0:15:22.5]} 7... Be6 {[%clk 0:15:20.6]} 8. Bxe6 {[%clk
0:15:19.1]} 8... fxe6 {[%clk 0:15:25.5]} 9. Bg5 {[%clk 0:15:21.7]} 9... h6
{[%clk 0:15:29.1]} 10. Bd2 {[%clk 0:15:22.9]} 10... Qe7 {[%clk 0:15:29.7]} 11.
a3 {[%clk 0:15:17.9]} 11... O-O {[%clk 0:15:32.7]} 12. c3 {[%clk 0:15:12]} 12...
Rad8 {[%clk 0:15:34.3]} 13. b4 {[%clk 0:15:15]} 13... d5 {[%clk 0:15:33.3]} 14.
Nxb6 {[%clk 0:15:07.7]} 14... axb6 {[%clk 0:15:36.2]} 15. b5 {[%clk 0:15:07.5]}
15... dxe4 {[%clk 0:15:37.6]} 16. bxc6 {[%clk 0:15:05.5]} 16... exf3 {[%clk
0:15:40]} 17. Qxf3 {[%clk 0:15:08.6]} 17... bxc6 {[%clk 0:15:40.8]} 18. Rfe1
{[%clk 0:15:07.3]} 18... Qd6 {[%clk 0:15:34.3]} 19. Re3 {[%clk 0:14:04.2]} 19...
Nd5 {[%clk 0:15:34.7]} 20. Qe4 {[%clk 0:13:48.8]} 20... Nxe3 {[%clk 0:15:37.4]}
21. Bxe3 {[%clk 0:13:53.7]} 21... Qxd3 {[%clk 0:15:39.8]} 22. Qxd3 {[%clk
0:13:28.2]} 22... Rxd3 {[%clk 0:15:42.1]} 23. c4 {[%clk 0:13:25.9]} 23... Rfd8
{[%clk 0:15:44.1]} 24. Kf1 {[%clk 0:13:23.5]} 24... Rd1+ {[%clk 0:15:45.9]} 25.
Rxd1 {[%clk 0:13:27.4]} 25... Rxd1+ {[%clk 0:15:50.8]} 26. Ke2 {[%clk
0:13:31.8]} 26... Ra1 {[%clk 0:15:53.5]} 27. f4 {[%clk 0:13:30.3]} 27... e4
{[%clk 0:15:56.2]} 0-1

[Event "Live Chess"]
[Site "Chess.com"]
[Date "2023.09.16"]
[Round "-"]
[White "Thiago1451"]
[Black "Francisco_Ferrari"]
[Result "0-1"]
[WhiteElo "565"]
[BlackElo "2169"]
[TimeControl "900+5"]
[EndTime "6:40:31 PDT"]
[Termination "Francisco_Ferrari venceu por desistência"]

1. c4 {[%clk 0:15:01.9]} 1... e5 {[%clk 0:15:01.8]} 2. Nc3 {[%clk 0:15:05.4]}
2... Nf6 {[%clk 0:15:05]} 3. e3 {[%clk 0:15:09.4]} 3... c6 {[%clk 0:15:08.6]} 4.
Nge2 {[%clk 0:15:13.8]} 4... d5 {[%clk 0:15:12.9]} 5. cxd5 {[%clk 0:15:17.5]}
5... cxd5 {[%clk 0:15:17.4]} 6. g3 {[%clk 0:15:21.9]} 6... Nc6 {[%clk
0:15:21.3]} 7. d4 {[%clk 0:15:26]} 7... e4 {[%clk 0:15:25.2]} 8. Bg2 {[%clk
0:15:28.6]} 8... h5 {[%clk 0:15:29.7]} 9. O-O {[%clk 0:15:32.8]} 9... h4 {[%clk
0:15:34.2]} 10. a4 {[%clk 0:15:31.4]} 10... hxg3 {[%clk 0:15:34.7]} 11. f3
{[%clk 0:15:35.6]} 11... gxh2+ {[%clk 0:15:27.2]} 0-1

[Event "Live Chess"]
[Site "Chess.com"]
[Date "2023.09.16"]
[Round "-"]
[White "sleepGM86"]
[Black "AlphaKaua10"]
[Result "1-0"]
[WhiteElo "1125"]
[BlackElo "1093"]
[TimeControl "900+5"]
[EndTime "6:41:38 PDT"]
[Termination "sleepGM86 venceu por desistência"]

1. c4 {[%clk 0:15:04]} 1... c5 {[%clk 0:15:03.1]} 2. Nc3 {[%clk 0:15:06.5]} 2...
g6 {[%clk 0:15:07]} 3. g3 {[%clk 0:15:09.8]} 3... Bg7 {[%clk 0:15:11.3]} 4. Bg2
{[%clk 0:15:13.5]} 4... Nf6 {[%clk 0:15:15.2]} 5. Nf3 {[%clk 0:15:17.2]} 5...
O-O {[%clk 0:15:19.3]} 6. O-O {[%clk 0:15:20.3]} 6... Nc6 {[%clk 0:15:23.1]} 7.
e3 {[%clk 0:15:23.3]} 7... e6 {[%clk 0:15:26.8]} 8. Re1 {[%clk 0:15:26.2]} 8...
d5 {[%clk 0:15:31.1]} 9. cxd5 {[%clk 0:15:29.5]} 9... exd5 {[%clk 0:15:36]} 10.
d4 {[%clk 0:15:33]} 10... cxd4 {[%clk 0:15:39.8]} 11. exd4 {[%clk 0:15:36]}
11... Ne4 {[%clk 0:15:42]} 12. Nxe4 {[%clk 0:15:36.6]} 12... dxe4 {[%clk
0:15:46.3]} 13. Rxe4 {[%clk 0:15:33.2]} 13... Bf5 {[%clk 0:15:43.5]} 14. Re1
{[%clk 0:15:34.3]} 14... Nxd4 {[%clk 0:15:44.6]} 15. Nxd4 {[%clk 0:15:34.8]}
15... Bxd4 {[%clk 0:15:48.6]} 16. Bxb7 {[%clk 0:15:12.2]} 16... Qb6 {[%clk
0:15:50.5]} 17. Qb3 {[%clk 0:15:02.5]} 17... Bxf2+ {[%clk 0:15:51.3]} 18. Kg2
{[%clk 0:15:02.4]} 18... Bxe1 {[%clk 0:15:38.5]} 19. Bxa8 {[%clk 0:14:55.4]}
19... Qxb3 {[%clk 0:15:41.2]} 20. axb3 {[%clk 0:14:58.1]} 20... Rxa8 {[%clk
0:15:45]} 21. Bh6 {[%clk 0:15:01.1]} 21... Ba5 {[%clk 0:15:42.4]} 22. Rxa5
{[%clk 0:15:00.4]} 22... f6 {[%clk 0:15:43.1]} 23. Ra6 {[%clk 0:14:53.3]} 23...
Kf7 {[%clk 0:15:45.7]} 24. Be3 {[%clk 0:14:35.5]} 24... Be4+ {[%clk 0:15:49.1]}
25. Kf2 {[%clk 0:14:36.4]} 25... Bd3 {[%clk 0:15:49.7]} 26. Rxa7+ {[%clk
0:14:35.1]} 26... Rxa7 {[%clk 0:15:51.7]} 27. Bxa7 {[%clk 0:14:38.9]} 27... h5
{[%clk 0:15:51.5]} 28. Ke3 {[%clk 0:14:39.6]} 28... Bc2 {[%clk 0:15:54.8]} 29.
b4 {[%clk 0:14:43]} 29... Ba4 {[%clk 0:15:58.8]} 30. Kd3 {[%clk 0:14:46.1]}
30... Bb5+ {[%clk 0:16:02.2]} 31. Kc3 {[%clk 0:14:50.2]} 31... Bc6 {[%clk
0:16:05.3]} 32. Kd4 {[%clk 0:14:53.4]} 32... Ke6 {[%clk 0:16:08.9]} 33. Kc5
{[%clk 0:14:57.4]} 33... Bd7 {[%clk 0:16:12.5]} 34. b5 {[%clk 0:15:00.8]} 34...
f5 {[%clk 0:16:15.3]} 35. b6 {[%clk 0:15:04.7]} 35... Bc8 {[%clk 0:16:14.7]} 36.
Kc6 {[%clk 0:15:05.7]} 36... g5 {[%clk 0:16:16.4]} 37. b7 {[%clk 0:15:09.6]}
37... Bxb7+ {[%clk 0:16:20.4]} 38. Kxb7 {[%clk 0:15:14.2]} 38... f4 {[%clk
0:16:25]} 39. gxf4 {[%clk 0:15:17.8]} 39... gxf4 {[%clk 0:16:29.4]} 40. Bb8
{[%clk 0:15:20.5]} 40... f3 {[%clk 0:16:32.5]} 41. Ba7 {[%clk 0:15:24.7]} 41...
Kf5 {[%clk 0:16:36]} 42. Kc6 {[%clk 0:15:28.3]} 42... Kf4 {[%clk 0:16:40.4]} 43.
Kd5 {[%clk 0:15:30.2]} 43... Kg4 {[%clk 0:16:44.6]} 44. Ke4 {[%clk 0:15:32.3]}
44... h4 {[%clk 0:16:47.8]} 45. Bf2 {[%clk 0:15:33.1]} 45... h3 {[%clk
0:16:44.5]} 46. b4 {[%clk 0:15:36.3]} 46... Kg5 {[%clk 0:16:47.7]} 47. Ke3
{[%clk 0:15:39.3]} 47... Kf6 {[%clk 0:16:51.5]} 48. Kxf3 {[%clk 0:15:43.6]}
48... Ke6 {[%clk 0:16:55.9]} 49. Kg4 {[%clk 0:15:48.2]} 49... Kd5 {[%clk
0:17:00.2]} 50. Kxh3 {[%clk 0:15:53.1]} 50... Kc4 {[%clk 0:17:04.3]} 51. Be1
{[%clk 0:15:58]} 51... Kd5 {[%clk 0:17:06.1]} 52. Kg3 {[%clk 0:16:02.9]} 52...
Ke5 {[%clk 0:17:09.8]} 53. h4 {[%clk 0:16:07.8]} 53... Kf6 {[%clk 0:17:14.2]}
54. Kg4 {[%clk 0:16:12.3]} 54... Kg6 {[%clk 0:17:18.5]} 55. b5 {[%clk
0:16:17.2]} 55... Kf6 {[%clk 0:17:21.5]} 56. b6 {[%clk 0:16:21.6]} 1-0

[Event "Live Chess"]
[Site "Chess.com"]
[Date "2023.09.16"]
[Round "-"]
[White "mary260210"]
[Black "InfinityDelas"]
[Result "1-0"]
[WhiteElo "859"]
[BlackElo "747"]
[TimeControl "900+5"]
[EndTime "6:42:00 PDT"]
[Termination "mary260210 venceu por xeque-mate"]

1. d4 {[%clk 0:15:03.5]} 1... d5 {[%clk 0:15:02.4]} 2. Nc3 {[%clk 0:15:07]} 2...
Nf6 {[%clk 0:15:05.5]} 3. Nf3 {[%clk 0:15:06.2]} 3... e6 {[%clk 0:15:09.2]} 4.
Bg5 {[%clk 0:15:05.6]} 4... Bb4 {[%clk 0:15:11.8]} 5. Bxf6 {[%clk 0:15:08.8]}
5... Qxf6 {[%clk 0:15:15.1]} 6. Qd3 {[%clk 0:15:06]} 6... Bxc3+ {[%clk
0:15:17.4]} 7. Qxc3 {[%clk 0:15:08.3]} 7... Nc6 {[%clk 0:15:18.2]} 8. O-O-O
{[%clk 0:15:09.2]} 8... O-O {[%clk 0:15:16.2]} 9. e3 {[%clk 0:15:10.4]} 9... Bd7
{[%clk 0:15:17]} 10. Bb5 {[%clk 0:15:10.5]} 10... a6 {[%clk 0:15:19.1]} 11. Bxc6
{[%clk 0:15:14.2]} 11... Bxc6 {[%clk 0:15:24]} 12. Ne5 {[%clk 0:15:15.8]} 12...
Qxf2 {[%clk 0:15:11.9]} 13. Nxc6 {[%clk 0:15:14.5]} 13... bxc6 {[%clk
0:15:15.7]} 14. Qxc6 {[%clk 0:15:16.8]} 14... Qxe3+ {[%clk 0:15:18.1]} 15. Rd2
{[%clk 0:15:13.9]} 15... Qg5 {[%clk 0:15:12.6]} 16. Qxc7 {[%clk 0:15:15.9]}
16... Rfc8 {[%clk 0:15:10.3]} 17. Qd7 {[%clk 0:15:07.3]} 17... Rd8 {[%clk
0:15:10.5]} 18. Qb7 {[%clk 0:14:53.6]} 18... e5 {[%clk 0:15:07.8]} 19. Rf1
{[%clk 0:14:56.2]} 19... Rf8 {[%clk 0:15:08.8]} 20. dxe5 {[%clk 0:14:58.6]}
20... Qxe5 {[%clk 0:15:09.9]} 21. Rxd5 {[%clk 0:14:54.3]} 21... Qxh2 {[%clk
0:15:05.2]} 22. Rdf5 {[%clk 0:14:50.3]} 22... Qh6+ {[%clk 0:15:07]} 23. R5f4
{[%clk 0:14:41.5]} 23... Qg6 {[%clk 0:15:04.9]} 24. Qe4 {[%clk 0:14:32.4]} 24...
Qxe4 {[%clk 0:14:56.4]} 25. Rxe4 {[%clk 0:14:35.1]} 25... Rae8 {[%clk
0:15:00.3]} 26. Rxe8 {[%clk 0:14:37.3]} 26... Rxe8 {[%clk 0:15:05.2]} 27. Rf5
{[%clk 0:14:30.8]} 27... Re6 {[%clk 0:15:04.1]} 28. Rd5 {[%clk 0:14:30.1]} 28...
g6 {[%clk 0:15:04.5]} 29. c4 {[%clk 0:14:32.3]} 29... h5 {[%clk 0:15:06.3]} 30.
b4 {[%clk 0:14:35.1]} 30... Rf6 {[%clk 0:15:09.4]} 31. c5 {[%clk 0:14:38.9]}
31... Rf1+ {[%clk 0:15:13]} 32. Kd2 {[%clk 0:14:41.8]} 32... Rf2+ {[%clk
0:15:17.2]} 33. Ke1 {[%clk 0:14:45]} 33... Rxg2 {[%clk 0:15:21.4]} 34. c6 {[%clk
0:14:49.5]} 34... Rg1+ {[%clk 0:15:25.6]} 35. Kf2 {[%clk 0:14:53.2]} 35... Rc1
{[%clk 0:15:26.6]} 36. Rd6 {[%clk 0:14:54.4]} 36... Rc2+ {[%clk 0:15:29.8]} 37.
Ke3 {[%clk 0:14:56.4]} 37... Rc3+ {[%clk 0:15:33.6]} 38. Kd4 {[%clk 0:14:59.2]}
38... Rg3 {[%clk 0:15:34.8]} 39. Kc5 {[%clk 0:15:01.5]} 39... Rg5+ {[%clk
0:15:38.6]} 40. Kc4 {[%clk 0:15:04.1]} 40... Rg4+ {[%clk 0:15:42.2]} 41. Kd5
{[%clk 0:15:06.9]} 41... Rg5+ {[%clk 0:15:46.1]} 42. Kc4 {[%clk 0:15:10.4]}
42... Rg4+ {[%clk 0:15:49.9]} 43. Kc3 {[%clk 0:15:14.2]} 43... Rg3+ {[%clk
0:15:53.9]} 44. Kd4 {[%clk 0:15:15.7]} 44... Rg4+ {[%clk 0:15:57.9]} 45. Kc3
{[%clk 0:15:19]} 45... Rg3+ {[%clk 0:16:02.1]} 46. Kb2 {[%clk 0:15:19.3]} 46...
Rg2+ {[%clk 0:16:06.2]} 47. Ka3 {[%clk 0:15:23.2]} 47... Rg3+ {[%clk 0:16:10.2]}
48. Ka4 {[%clk 0:15:24.9]} 48... Rg2 {[%clk 0:16:12.1]} 49. c7 {[%clk
0:15:28.6]} 49... Rxa2+ {[%clk 0:16:14.6]} 50. Kb3 {[%clk 0:15:32.2]} 50... Ra1
{[%clk 0:16:08.3]} 51. c8=Q+ {[%clk 0:15:34.4]} 51... Kg7 {[%clk 0:16:12.1]} 52.
Rxa6 {[%clk 0:15:35.1]} 52... Rxa6 {[%clk 0:16:11]} 53. Qxa6 {[%clk 0:15:38.5]}
53... h4 {[%clk 0:16:14.1]} 54. Qd3 {[%clk 0:15:39]} 54... Kh6 {[%clk
0:16:17.6]} 55. b5 {[%clk 0:15:43.5]} 55... Kg5 {[%clk 0:16:20.3]} 56. b6 {[%clk
0:15:48.1]} 56... Kg4 {[%clk 0:16:24.7]} 57. b7 {[%clk 0:15:52.5]} 57... h3
{[%clk 0:16:28.7]} 58. b8=Q {[%clk 0:15:50.5]} 58... h2 {[%clk 0:16:33.6]} 59.
Qe2+ {[%clk 0:15:47.7]} 59... Kh3 {[%clk 0:16:37]} 60. Qbxh2# {[%clk 0:15:50.7]}
1-0

[Event "Live Chess"]
[Site "Chess.com"]
[Date "2023.09.16"]
[Round "-"]
[White "dani_reitas"]
[Black "zxsimon"]
[Result "0-1"]
[WhiteElo "1007"]
[BlackElo "1489"]
[TimeControl "900+5"]
[EndTime "6:42:25 PDT"]
[Termination "zxsimon venceu por desistência"]

1. d4 {[%clk 0:15:03.1]} 1... Nf6 {[%clk 0:15:02.9]} 2. c4 {[%clk 0:15:06.7]}
2... d6 {[%clk 0:15:06.2]} 3. Nc3 {[%clk 0:15:10.9]} 3... Nbd7 {[%clk
0:15:10.1]} 4. e3 {[%clk 0:15:15.1]} 4... g6 {[%clk 0:15:14.3]} 5. Nf3 {[%clk
0:15:19.6]} 5... Bg7 {[%clk 0:15:18.7]} 6. Bd3 {[%clk 0:15:24.3]} 6... c5 {[%clk
0:15:22.4]} 7. O-O {[%clk 0:15:27.9]} 7... a6 {[%clk 0:15:25.2]} 8. Re1 {[%clk
0:15:30.9]} 8... O-O {[%clk 0:15:29.1]} 9. Bd2 {[%clk 0:15:33.6]} 9... Rb8
{[%clk 0:15:31.4]} 10. Qe2 {[%clk 0:15:16.6]} 10... e6 {[%clk 0:15:23.3]} 11.
Ne4 {[%clk 0:15:09]} 11... d5 {[%clk 0:15:12.2]} 12. Nxf6+ {[%clk 0:15:08.5]}
12... Nxf6 {[%clk 0:15:15]} 13. Ne5 {[%clk 0:14:50]} 13... Nd7 {[%clk
0:15:07.9]} 14. Nxd7 {[%clk 0:14:35.2]} 14... Bxd7 {[%clk 0:15:10.3]} 15. Rac1
{[%clk 0:14:29.9]} 15... cxd4 {[%clk 0:14:58.3]} 16. exd4 {[%clk 0:14:05.7]}
16... Bxd4 {[%clk 0:14:52]} 17. Bc3 {[%clk 0:14:07.5]} 17... Bxc3 {[%clk
0:14:54.3]} 18. Rxc3 {[%clk 0:14:10.7]} 18... d4 {[%clk 0:14:51.9]} 19. Rc2
{[%clk 0:14:06.7]} 19... Qf6 {[%clk 0:14:54.8]} 20. Qg4 {[%clk 0:13:49.7]} 20...
Rfd8 {[%clk 0:14:48.6]} 21. Rce2 {[%clk 0:13:43.5]} 21... e5 {[%clk 0:14:46.2]}
22. Qf3 {[%clk 0:13:39.7]} 22... Qxf3 {[%clk 0:14:47.4]} 23. gxf3 {[%clk
0:13:43.5]} 23... f6 {[%clk 0:14:50]} 24. Kg2 {[%clk 0:13:36]} 24... b5 {[%clk
0:14:51.3]} 25. b3 {[%clk 0:13:32.8]} 25... Be6 {[%clk 0:14:48.9]} 26. Rc2
{[%clk 0:13:14.5]} 26... Rbc8 {[%clk 0:14:47.1]} 27. Rec1 {[%clk 0:12:55]} 27...
bxc4 {[%clk 0:14:50]} 28. Bxc4 {[%clk 0:12:56.9]} 28... Bxc4 {[%clk 0:14:53.2]}
29. bxc4 {[%clk 0:13:01.3]} 29... Rc6 {[%clk 0:14:54.9]} 30. Kf1 {[%clk
0:12:47.4]} 30... Kf7 {[%clk 0:14:55.7]} 31. Ke2 {[%clk 0:12:47.8]} 31... f5
{[%clk 0:14:56.9]} 32. Rd1 {[%clk 0:12:49.3]} 32... e4 {[%clk 0:14:57.7]} 33.
fxe4 {[%clk 0:12:52]} 33... fxe4 {[%clk 0:15:01.3]} 34. c5 {[%clk 0:11:34.3]}
34... d3+ {[%clk 0:14:59.3]} 0-1

[Event "Live Chess"]
[Site "Chess.com"]
[Date "2023.09.16"]
[Round "-"]
[White "Torugomilho11"]
[Black "Riquelme_Leonardo"]
[Result "1/2-1/2"]
[WhiteElo "1150"]
[BlackElo "1699"]
[TimeControl "900+5"]
[EndTime "6:43:15 PDT"]
[Termination "Partida empatada por acordo"]

1. e4 {[%clk 0:15:03]} 1... e5 {[%clk 0:15:03.5]} 2. Nf3 {[%clk 0:15:07.2]} 2...
Nc6 {[%clk 0:15:07.4]} 3. Bb5 {[%clk 0:15:10]} 3... Nf6 {[%clk 0:15:10.8]} 4.
Nc3 {[%clk 0:15:00.8]} 4... Bc5 {[%clk 0:15:10.8]} 5. O-O {[%clk 0:14:56.4]}
5... d6 {[%clk 0:15:13.7]} 6. Bxc6+ {[%clk 0:14:56.9]} 6... bxc6 {[%clk
0:15:17.9]} 7. d3 {[%clk 0:14:56]} 7... h6 {[%clk 0:15:20.2]} 8. Na4 {[%clk
0:14:42.4]} 8... Bb6 {[%clk 0:15:21.6]} 9. Nxb6 {[%clk 0:14:43.2]} 9... cxb6
{[%clk 0:15:26.5]} 10. Be3 {[%clk 0:14:37]} 10... O-O {[%clk 0:15:24.9]} 11. d4
{[%clk 0:14:18]} 11... exd4 {[%clk 0:15:23.3]} 12. Nxd4 {[%clk 0:14:20.2]} 12...
c5 {[%clk 0:15:23.9]} 13. Nf3 {[%clk 0:14:18]} 13... Nxe4 {[%clk 0:15:26.8]} 14.
Qd3 {[%clk 0:14:19.5]} 14... Bf5 {[%clk 0:15:25.2]} 15. Qd5 {[%clk 0:14:16.2]}
15... Bg6 {[%clk 0:15:12.6]} 16. Rad1 {[%clk 0:14:18.1]} 16... Qf6 {[%clk
0:15:11.4]} 17. c3 {[%clk 0:13:59.3]} 17... Rfd8 {[%clk 0:15:05]} 18. Nd2 {[%clk
0:12:51.8]} 18... Nxd2 {[%clk 0:15:07.3]} 19. Rxd2 {[%clk 0:12:55]} 19... Qe6
{[%clk 0:15:06]} 20. Qxe6 {[%clk 0:12:53.6]} 20... fxe6 {[%clk 0:15:09.9]} 21.
Rfd1 {[%clk 0:12:56.8]} 21... d5 {[%clk 0:15:13.3]} 22. c4 {[%clk 0:12:56.8]}
22... d4 {[%clk 0:15:14.4]} 23. Bf4 {[%clk 0:12:48.2]} 23... Re8 {[%clk
0:15:13.2]} 24. Re2 {[%clk 0:12:37.7]} 24... d3 {[%clk 0:14:49.9]} 25. Re5
{[%clk 0:12:23.4]} 25... Rad8 {[%clk 0:14:47.7]} 26. Bd2 {[%clk 0:12:09.7]}
26... Rd4 {[%clk 0:14:35.6]} 27. b3 {[%clk 0:11:51.5]} 27... Re4 {[%clk
0:14:35.7]} 28. Rxe4 {[%clk 0:11:48.6]} 28... Bxe4 {[%clk 0:14:40.6]} 29. Bf4
{[%clk 0:11:39.8]} 29... e5 {[%clk 0:14:42.2]} 30. Bd2 {[%clk 0:11:32.2]} 30...
Bg6 {[%clk 0:14:43.9]} 31. Re1 {[%clk 0:11:32.7]} 31... e4 {[%clk 0:14:47.4]}
32. f3 {[%clk 0:11:24.9]} 32... exf3 {[%clk 0:14:45.1]} 33. Rxe8+ {[%clk
0:11:28.4]} 33... Bxe8 {[%clk 0:14:49.2]} 34. gxf3 {[%clk 0:11:31.9]} 34... Bg6
{[%clk 0:14:53.5]} 35. Kf2 {[%clk 0:11:35.8]} 35... Kf7 {[%clk 0:14:57.4]} 36.
Ke3 {[%clk 0:11:35.3]} 36... Ke6 {[%clk 0:15:00.1]} 37. Bc3 {[%clk 0:11:35.5]}
37... Kf7 {[%clk 0:14:58.1]} 38. Kf4 {[%clk 0:11:28.4]} 38... a6 {[%clk
0:14:58.4]} 39. Ke5 {[%clk 0:11:17.8]} 39... Ke7 {[%clk 0:14:56.8]} 40. Kd5
{[%clk 0:11:02.2]} 40... Kd7 {[%clk 0:14:52]} 41. Ke5 {[%clk 0:10:59.6]} 41...
Kc6 {[%clk 0:14:45.2]} 42. Kf4 {[%clk 0:10:50.6]} 42... b5 {[%clk 0:14:47.9]}
43. cxb5+ {[%clk 0:10:54]} 43... axb5 {[%clk 0:14:52.8]} 44. Ke3 {[%clk
0:10:55.7]} 44... c4 {[%clk 0:14:41.8]} 45. bxc4 {[%clk 0:10:53.9]} 45... bxc4
{[%clk 0:14:46.7]} 46. Kd4 {[%clk 0:10:56.8]} 46... Kb5 {[%clk 0:14:46.2]} 47.
Ke3 {[%clk 0:10:56.8]} 47... Ka4 {[%clk 0:14:39.7]} 48. Bxg7 {[%clk 0:10:55.5]}
48... c3 {[%clk 0:14:43.3]} 49. Bxc3 {[%clk 0:10:57.3]} 49... Ka3 {[%clk
0:14:46.2]} 50. Bg7 {[%clk 0:10:39.7]} 50... h5 {[%clk 0:14:42.5]} 1/2-1/2